fUSD/lending_fUSD_20250930
["ID","MTS","AMOUNT","RATE_DAILY","PERIOD"]
[388492375,1759210944124,150.0,0.000161,2]
[388492388,1759210997391,-217.04,0.00016834,2]
[388492440,1759211403342,1054.47,0.00025,60]
[388492441,1759211416200,527.24,0.00025,60]
[388492451,1759211431717,-150.0,0.00016989,2]
[388492452,1759211431728,-150.0,0.00016989,2]
[388492453,1759211431737,-152.58314347,0.00016989,2]
[388492454,1759211431747,-150.0,0.00016989,2]
[388492455,1759211431757,-150.0,0.00016989,2]
[388492456,1759211431767,-150.0,0.00016989,2]
[388492457,1759211431777,-811.0,0.00017112,2]
[388492458,1759211431787,-300.0,0.00017112,2]
[388492459,1759211431796,-300.0,0.00017112,2]
[388492460,1759211431805,-156.0,0.00017112,2]
[388492461,1759211431815,-607.86908237,0.00017112,2]
[388492462,1759211431827,-416.16595857,0.00017112,2]
[388492463,1759211431838,-175.96495906,0.00017112,2]
[388492464,1759211431848,-2247.55407022,0.00017113,2]
[388492465,1759211431858,-1892.4,0.00017113,2]
[388492466,1759211431868,-150.0,0.0001728,2]
[388492467,1759211431878,-1000.0,0.00017307,2]
[388492468,1759211431889,-199.44163615,0.00017367,2]
[388492469,1759211431899,-199.44163615,0.00017369,2]
[388492470,1759211431909,-199.44163615,0.0001737,2]
[388492471,1759211431919,-202.27864748,0.00017375,2]
[388492472,1759211431936,-199.44163615,0.00017376,2]
[388492473,1759211431946,-166.15314464,0.00017382,2]
[388492474,1759211431957,-202.27864748,0.00017384,2]
[388492475,1759211431967,-202.27864748,0.00017386,2]
[388492476,1759211431976,-199.44163615,0.00017386,2]
[388492477,1759211431986,-166.15314464,0.00017417,2]
[388492478,1759211431995,-166.15314464,0.00017426,2]
[388492479,1759211432005,-166.15314464,0.00017429,2]
[388492480,1759211432015,-202.27864748,0.0001744,2]
[388492481,1759211432025,-202.27864748,0.00017442,2]
[388492482,1759211432035,-166.15314464,0.00017444,2]
[388492483,1759211432046,-202.27864748,0.00017455,2]
[388492484,1759211432055,-166.15314464,0.00017465,2]
[388492485,1759211432065,-199.44163615,0.00017471,2]
[388492487,1759211432075,-202.27864748,0.00017485,2]
[388492489,1759211432084,-166.15314464,0.00017485,2]
[388492491,1759211432094,-199.44163615,0.00017485,2]
[388492492,1759211432103,-543.44,0.000175,2]
[388492493,1759211432113,-332.86,0.000175,2]
[388492494,1759211432122,-806.64,0.000175,2]
[388492496,1759211432132,-2999.999999,0.000175,2]
[388492498,1759211432141,-9000.0,0.00017542,2]
[388492500,1759211432150,-1024.74733874,0.00017542,2]
[388492502,1759211432161,-1004.78810055,0.00017551,2]
[388492505,1759211432170,-239.84119403,0.00017551,2]
[388492507,1759211432179,-760.46123084,0.00017561,2]
[388492509,1759211432188,-171.46,0.00017578,2]
[388492511,1759211432198,-156.09,0.00017671,2]
[388492514,1759211432208,-302.74,0.000177,2]
[388492517,1759211432217,-557.01,0.000177,2]
[388492519,1759211432227,-339.41,0.000177,2]
[388492522,1759211432237,-500.0,0.000177,6]
[388492525,1759211432246,-700.0,0.00017723,2]
[388492527,1759211432256,-2128.4780076,0.00017729,2]
[388492529,1759211432265,-3962.5675565,0.0001777,2]
[388492531,1759211432274,-543.0289505,0.00017794,2]
[388492533,1759211432283,-154.8171012,0.00017794,2]
[388492536,1759211432293,-1383.0,0.000178,2]
[388492538,1759211432303,-1598.34,0.000178,2]
[388492539,1759211432312,-1000.0,0.000178,6]
[388492540,1759211432322,-151.0,0.0001781,2]
[388492541,1759211432339,-205.7825651,0.00017812,2]
[388492542,1759211432348,-390.044381,0.00017812,2]
[388492543,1759211432357,-695.39793187,0.00017813,2]
[388492544,1759211432367,-151.0,0.00017813,2]
[388492545,1759211432377,-595.01383255,0.00017813,2]
[388492546,1759211432386,-151.0,0.00017813,2]
[388492547,1759211432396,-322.6107,0.00017813,2]
[388492548,1759211432405,-151.0,0.00017813,2]
[388492549,1759211432418,-151.0,0.00017813,2]
[388492550,1759211432428,-151.0,0.00017813,2]
[388492551,1759211432437,-151.0,0.00017813,2]
[388492552,1759211432447,-151.0,0.00017813,2]
[388492553,1759211432458,-151.0,0.00017813,2]
[388492554,1759211432467,-200.0,0.00017813,2]
[388492555,1759211432476,-151.0,0.00017813,2]
[388492556,1759211432486,-151.0,0.00017813,2]
[388492557,1759211432498,-151.0,0.00017813,2]
[388492558,1759211432507,-151.0,0.00017813,2]
[388492559,1759211432517,-151.0,0.00017813,2]
[388492560,1759211432526,-151.0,0.00017813,2]
[388492561,1759211432536,-151.0,0.00017813,2]
[388492562,1759211432546,-151.0,0.00017813,2]
[388492563,1759211432555,-151.0,0.00017813,2]
[388492564,1759211432565,-151.0,0.00017813,2]
[388492565,1759211432574,-151.0,0.00017813,2]
[388492566,1759211432583,-200.0,0.00017813,2]
[388492567,1759211432593,-151.0,0.00017813,2]
[388492568,1759211432602,-151.0,0.00017813,2]
[388492569,1759211432612,-324.96626499,0.00017813,2]
[388492570,1759211432622,-151.0,0.00017813,2]
[388492571,1759211432632,-151.0,0.00017813,2]
[388492572,1759211432641,-151.0,0.00017813,2]
[388492573,1759211432651,-151.0,0.00017813,2]
[388492574,1759211432660,-151.0,0.00017813,2]
[388492575,1759211432670,-500.0,0.00017813,2]
[388492576,1759211432679,-151.0,0.00017813,2]
[388492577,1759211432688,-500.0,0.00017813,2]
[388492578,1759211432698,-151.0,0.00017813,2]
[388492579,1759211432707,-500.0,0.00017813,2]
[388492580,1759211432724,-151.0,0.00017813,2]
[388492581,1759211432733,-500.0,0.00017813,2]
[388492582,1759211432743,-151.0,0.00017813,2]
[388492583,1759211432753,-500.0,0.00017813,2]
[388492584,1759211432762,-151.0,0.00017813,2]
[388492585,1759211432772,-500.0,0.00017813,2]
[388492586,1759211432782,-151.0,0.00017813,2]
[388492587,1759211432791,-500.0,0.00017813,2]
[388492588,1759211432801,-151.0,0.00017813,2]
[388492589,1759211432811,-500.0,0.00017813,2]
[388492590,1759211432821,-151.0,0.00017813,2]
[388492591,1759211432831,-500.0,0.00017813,2]
[388492592,1759211432841,-500.0,0.00017813,2]
[388492593,1759211432851,-247.34819929,0.00017813,2]
[388492594,1759211432860,-151.0,0.00017821,2]
[388492595,1759211432870,-89685.3549,0.00017824,2]
[388492596,1759211432880,-246.23316174,0.00017824,2]
[388492597,1759211432889,-161.50922696,0.00017824,2]
[388492598,1759211432900,-182.90573244,0.00017824,2]
[388492599,1759211432911,-4812.29808606,0.00017824,2]
[388492600,1759211432921,-6877.40464792,0.00017824,2]
[388492601,1759211432931,-5000.0,0.00017824,2]
[388492602,1759211432940,-603.0,0.00017829,2]
[388492603,1759211432950,-1306.0,0.00017829,2]
[388492604,1759211432959,-570.0,0.00017829,2]
[388492605,1759211432969,-1584.0,0.00017829,2]
[388492606,1759211432979,-2862.637,0.00017829,2]
[388492607,1759211432988,-205.438,0.00017829,2]
[388492608,1759211432998,-1141.432,0.00017829,2]
[388492609,1759211433713,-2128.47800757,0.00017846,2]
[388492610,1759211433816,-5964.17191359,0.00017874,2]
[388492611,1759211433833,-35909.29384167,0.00017874,2]
[388492612,1759211433846,-294.9922424,0.00017874,2]
[388492613,1759211433858,-1082.41286465,0.00017874,2]
[388492614,1759211433870,-1640.22103929,0.00017874,2]
[388492615,1759211433880,-628.202994,0.00017874,2]
[388492616,1759211433891,-628.202994,0.00017874,2]
[388492617,1759211433901,-151.0,0.00017874,2]
[388492618,1759211433912,-151.0,0.00017874,2]
[388492619,1759211433923,-628.202994,0.00017874,2]
[388492620,1759211433933,-628.202994,0.00017874,2]
[388492621,1759211433946,-170.0501464,0.00017899,2]
[388492622,1759211433959,-613.55355831,0.000179,2]
[388492623,1759211433973,-9498.27644169,0.000179,2]
[388492624,1759211433982,-1500.0,0.000179,6]
[388492625,1759211433992,-844.4069951,0.000179,2]
[388492626,1759211434002,-5765.12596385,0.00017907,2]
[388492627,1759211434017,-1854.6576699,0.00017907,2]
[388492628,1759211434029,-1004.78810055,0.00017907,2]
[388492629,1759211434041,-761.72494841,0.00017907,2]
[388492634,1759211437686,-151.0,0.00017874,2]
[388492635,1759211437697,-1471.468443,0.00017907,2]
[388492636,1759211437743,-390.044381,0.00017907,2]
[388492662,1759211439836,-151.0,0.00017874,2]
[388492663,1759211439848,-2813.87609787,0.00017907,2]
[388492664,1759211439896,-4307.19990002,0.00017907,2]
[388492704,1759211444599,-837.71688,0.00017907,2]
[388492713,1759211445806,-410.2200002,0.00017874,2]
[388492719,1759211469373,482.8,0.000256,120]
[388492728,1759211523897,-676.27321132,0.00016602,2]
[388492729,1759211526099,-266.2318804,0.00016602,2]
[388492730,1759211527932,-23.09490828,0.00016602,2]
[388492757,1759211900093,177.25,8.442e-05,2]
[388492758,1759211901332,320.0,0.00025326,120]
[388492800,1759212129890,1000.0,0.000166,2]
[388492801,1759212160591,1000.0,0.00025,60]
[388492803,1759212194520,2000.0,0.00025358,120]
[388493065,1759212444330,159.98,0.00016599,2]
[388493070,1759212470367,393.82,0.00016628,2]
[388493071,1759212475270,-606.18,0.00016628,2]
[388493072,1759212475294,-203.99,0.00016758,2]
[388493073,1759212475316,-183.47766599,0.00016815,2]
[388493074,1759212475337,-164.27,0.00016828,2]
[388493075,1759212475360,-320.0,0.00016884,2]
[388493076,1759212475382,-150.0,0.00016884,7]
[388493077,1759212475406,-177.25,0.00016884,2]
[388493078,1759212475427,-200.0,0.00016895,2]
[388493079,1759212475447,-200.0,0.00016915,2]
[388493080,1759212475467,-179.78,0.00016915,2]
[388493081,1759212475488,-666.0,0.0001693,3]
[388493082,1759212475509,-1200.0,0.00016988,2]
[388493083,1759212475530,-150.0,0.00016989,2]
[388493084,1759212475550,-150.0,0.00016989,2]
[388493085,1759212475572,-150.0,0.00016989,2]
[388493086,1759212475592,-150.0,0.00016989,2]
[388493087,1759212475613,-150.0,0.00016989,2]
[388493088,1759212475634,-150.0,0.00016989,2]
[388493089,1759212475656,-213.3,0.00016989,2]
[388493090,1759212475678,-150.0,0.00016989,2]
[388493091,1759212475702,-150.0,0.00016989,2]
[388493092,1759212475724,-150.0,0.00016989,2]
[388493093,1759212475745,-150.0,0.00016989,2]
[388493094,1759212475767,-150.0,0.00016989,2]
[388493095,1759212475790,-1200.0,0.00016999,2]
[388493096,1759212475816,-300.0,0.00016999,2]
[388493097,1759212475837,-150.0,0.00017,2]
[388493098,1759212475859,-4622.2300751,0.00017,2]
[388493099,1759212502462,537.30277318,0.000169,2]
[388493100,1759212550357,-549.0,0.00017096,2]
[388493101,1759212550380,-207.24467613,0.00017116,2]
[388493102,1759212550407,-1100.5,0.000173,2]
[388493103,1759212550430,-150.0,0.00017367,2]
[388493104,1759212550454,-1995.55792395,0.00017401,2]
[388493105,1759212550477,-170.05,0.0001744,2]
[388493106,1759212550501,-1995.55792395,0.00017446,2]
[388493107,1759212550526,-1995.55792395,0.00017451,2]
[388493108,1759212550549,-1995.55792395,0.00017455,2]
[388493109,1759212550573,-1995.55792395,0.00017456,2]
[388493110,1759212550594,-150.0,0.00017461,2]
[388493111,1759212550616,-150.0,0.00017461,2]
[388493112,1759212550640,-1845.41570412,0.00017473,2]
[388493113,1759212603003,-150.14221983,0.00017473,2]
[388493114,1759212603033,-239.84119403,0.00017489,2]
[388493115,1759212603061,-426.01658614,0.00017495,2]
[388493123,1759212631918,-1569.54133781,0.00017495,2]
[388493124,1759212631929,-1383.85706048,0.000175,2]
[388493125,1759212631940,-203.99,0.00017596,2]
[388493126,1759212631953,-150.0,0.00017618,2]
[388493127,1759212631965,-1200.0,0.00017626,2]
[388493128,1759212631975,-9624.7832242,0.00017627,2]
[388493129,1759212631986,-474.52590314,0.00017686,2]
[388493130,1759212631998,-300.0,0.000177,6]
[388493131,1759212632008,-590.51390156,0.0001773,2]
[388493132,1759212632018,-150.0,0.00017744,2]
[388493133,1759212632029,-1180.0,0.00017748,2]
[388493134,1759212632039,-700.0,0.00017772,2]
[388493135,1759212632049,-700.0,0.000178,6]
[388493136,1759212632058,-183.47766598,0.00017807,2]
[388493137,1759212632067,-1000.0,0.00017813,2]
[388493138,1759212632077,-151.0,0.00017813,2]
[388493139,1759212632087,-1000.0,0.00017813,2]
[388493140,1759212632097,-151.0,0.00017813,2]
[388493141,1759212632107,-1000.0,0.00017813,2]
[388493142,1759212632116,-151.0,0.00017813,2]
[388493143,1759212632126,-285.0462963,0.00017813,2]
[388493144,1759212632136,-151.0,0.00017813,2]
[388493145,1759212632145,-151.0,0.00017813,2]
[388493146,1759212632155,-151.0,0.00017813,2]
[388493147,1759212632165,-322.6107,0.00017813,2]
[388493148,1759212632175,-151.0,0.00017813,2]
[388493149,1759212632186,-500.0,0.00017813,2]
[388493150,1759212632195,-500.0,0.00017813,2]
[388493151,1759212632205,-297.71832794,0.00017813,2]
[388493152,1759212632214,-447.94885347,0.00017823,2]
[388493153,1759212632224,-211.05699576,0.00017824,2]
[388493154,1759212632234,-2196.80476277,0.00017824,2]
[388493155,1759212632244,-161.50922692,0.00017824,2]
[388493156,1759212632253,-3621.01715245,0.00017824,2]
[388493157,1759212632289,-710.05112504,0.00017824,2]
[388493158,1759212632299,-5000.0,0.00017824,2]
[388493159,1759212632309,-150.221,0.00017829,2]
[388493160,1759212632318,-930.705382,0.00017843,2]
[388493161,1759212632328,-615.46750661,0.00017843,2]
[388493162,1759212632339,-1000.78580449,0.00017843,2]
[388493163,1759212632350,-619.02366917,0.00017843,2]
[388493164,1759212632362,-462.42928603,0.00017843,2]
[388493165,1759212632372,-3687.62916634,0.000179,2]
[388493166,1759212632383,-2720.19817914,0.000179,2]
[388493167,1759212632395,-1000.0,0.000179,6]
[388493168,1759212632404,-150.0,0.000179,2]
[388493169,1759212632414,-832.77525,0.00017907,2]
[388493170,1759212632424,-549.25626,0.00017907,2]
[388493171,1759212632434,-179.51660962,0.00017907,2]
[388493172,1759212632444,-151.0,0.00017907,2]
[388493173,1759212632454,-213.71219623,0.00017923,2]
[388493174,1759212632464,-305.28744867,0.00017923,2]
[388493175,1759212632474,-1196.51814569,0.00017923,5]
[388493176,1759212632484,-1196.51814569,0.00017923,5]
[388493177,1759212632494,-1023.0,0.00017924,2]
[388493178,1759212632505,-10769.78758522,0.00017924,2]
[388493179,1759212632517,-714.24615798,0.00017924,2]
[388493180,1759212632533,-713.90783571,0.00017924,2]
[388493181,1759212632545,-742.81520405,0.00017924,2]
[388493182,1759212635126,-161.44474461,0.00017824,2]
[388493183,1759212635138,-634.51544386,0.00017924,2]
[388493184,1759212635150,-3126.77846771,0.00017924,2]
[388493185,1759212635163,-954.02089114,0.00017924,2]
[388493186,1759212635175,-1487.25625001,0.00017924,2]
[388493187,1759212635193,-3124.34159078,0.00017924,2]
[388493188,1759212635205,-3403.35815284,0.00017924,2]
[388493189,1759212635218,-4511.35662938,0.00017924,2]
[388493190,1759212635229,-1300.0,0.00017924,2]
[388493191,1759212635264,-381.18195705,0.00017924,2]
[388493192,1759212635276,-497.75,0.00017924,2]
[388493194,1759212635378,-1550.53694625,0.00017924,2]
[388493228,1759212638294,-1153.48880663,0.00017924,2]
[388493229,1759212638306,-2038.83561972,0.00017924,2]
[388493230,1759212638396,-364457.8485609,0.00017924,2]
[388493231,1759212638406,-224608.8393468,0.00017924,2]
[388493232,1759212638467,-11413.0,0.00017924,2]
[388493234,1759212639864,-421.43569992,0.00017924,2]
[388493235,1759212639877,-1069.43626824,0.00017924,2]
[388493404,1759212645035,-521.4885805,0.00017924,2]
[388493474,1759212645712,-1992.7,0.00017924,2]
[388493534,1759212646144,-793.43999999,0.00017924,2]
[388493539,1759212646186,-262.45576647,0.00017924,2]
[388493542,1759212646199,-28530.0,0.00017924,2]
[388493544,1759212646212,-4187.82661082,0.00017924,2]
[388493546,1759212646225,-536.27199999,0.00017924,2]
[388493549,1759212646237,-13823.46557486,0.00017924,2]
[388493551,1759212646249,-9703.72456036,0.00017924,2]
[388493553,1759212646262,-28816.712047,0.00017924,2]
[388494506,1759212986180,400.0,0.000256,120]
[388494524,1759213218671,-150.0,0.000209,30]
[388494525,1759213241487,-150.0,0.000209,30]
[388494526,1759213273421,-220.0,0.000209,30]
[388494528,1759213476165,-558.0,0.000209,30]
[388494530,1759213509653,150.0,0.00016077,2]
[388494531,1759213509759,150.0,0.00016077,2]
[388494532,1759213512178,208.80344041,0.00016077,2]
[388494533,1759213514289,150.0,0.00016077,2]
[388494534,1759213515894,150.0,0.00016077,2]
[388494535,1759213516034,150.0,0.00016077,2]
[388494536,1759213522446,150.0,0.00016077,2]
[388494537,1759213523039,150.0,0.00016077,2]
[388494538,1759213528456,150.0,0.00016077,2]
[388494539,1759213530665,150.0,0.00016077,2]
[388494540,1759213531069,150.0,0.00016077,2]
[388494541,1759213531256,150.0,0.00016077,2]
[388494542,1759213540425,3000.0,0.00025,60]
[388494543,1759213549361,3000.0,0.00025,60]
[388494544,1759213560927,3000.0,0.00025,60]
[388494545,1759213578006,3000.0,0.000256,120]
[388494546,1759213585723,3000.0,0.000256,120]
[388494547,1759213599192,3000.0,0.00025,60]
[388494548,1759213606007,3000.0,0.00025,60]
[388494549,1759213617386,3000.0,0.000256,120]
[388494550,1759213624884,3000.0,0.00025,60]
[388494551,1759213633293,3000.0,0.00025,60]
[388494552,1759213646561,3000.0,0.00025,60]
[388494553,1759213662610,3000.0,0.00025,60]
[388494554,1759213668864,3000.0,0.00025,60]
[388494555,1759213678159,3000.0,0.00025,60]
[388494560,1759213753094,3000.0,0.00025,60]
[388494561,1759213763177,3000.0,0.00025,60]
[388494563,1759213791525,3000.0,0.00025,60]
[388494564,1759213800270,3000.0,0.00025,60]
[388494566,1759213820566,3000.0,0.00025,60]
[388494567,1759213829560,3000.0,0.00025,60]
[388494578,1759213832182,-150.0,0.00016672,2]
[388494579,1759213832192,-150.0,0.00016672,2]
[388494580,1759213832201,-804.21156385,0.00016754,2]
[388494581,1759213832271,-778.57843615,0.00016754,2]
[388494582,1759213832281,-179.79,0.00016766,2]
[388494583,1759213832291,-150.0,0.0001697,2]
[388494584,1759213832301,-150.0,0.0001697,2]
[388494585,1759213832312,-150.0,0.0001697,2]
[388494586,1759213832325,-823.38,0.00016978,2]
[388494587,1759213832334,-250.0,0.00017,2]
[388494588,1759213832343,-154.66,0.0001711,2]
[388494589,1759213832353,-150.0,0.0001711,7]
[388494590,1759213832363,-666.0,0.00017132,3]
[388494591,1759213832372,-152.99,0.00017239,2]
[388494592,1759213832382,-150.0,0.00017268,2]
[388494593,1759213832392,-150.0,0.00017268,2]
[388494594,1759213832403,-879.37,0.0001732,2]
[388494595,1759213832413,-2219.77971543,0.00017386,2]
[388494596,1759213832422,-300.0,0.000174,6]
[388494597,1759213832432,-2219.77971543,0.00017403,2]
[388494598,1759213832442,-2219.77971543,0.00017448,2]
[388494599,1759213832452,-2219.77971543,0.0001745,2]
[388494600,1759213832461,-2219.77971543,0.00017451,2]
[388494601,1759213832473,-300.0,0.00017478,2]
[388494602,1759213832486,-2219.77971543,0.00017487,2]
[388494603,1759213832495,-2219.77971543,0.00017494,2]
[388494604,1759213832505,-700.0,0.000175,6]
[388494605,1759213832516,-1100.0,0.000176,6]
[388494606,1759213832525,-1200.0,0.00017679,2]
[388494607,1759213832535,-591.63119991,0.0001768,2]
[388494608,1759213832544,-1500.0,0.000177,6]
[388494609,1759213832555,-300.0,0.00017772,2]
[388494610,1759213832565,-1977.12428652,0.00017773,2]
[388494611,1759213832574,-1977.12428649,0.00017779,2]
[388494612,1759213832584,-360.0,0.00017779,2]
[388494613,1759213832594,-164.61515916,0.0001778,2]
[388494616,1759213832603,-3897.96144975,0.0001778,2]
[388494618,1759213832613,-3174.03881044,0.0001778,2]
[388494620,1759213832622,-161.44474461,0.0001778,2]
[388494623,1759213832632,-307.65968543,0.0001778,2]
[388494625,1759213832642,-205.60307896,0.0001778,2]
[388494628,1759213832651,-180.9059964,0.0001778,2]
[388494631,1759213832661,-472.72103347,0.0001778,2]
[388494633,1759213832671,-161.50922692,0.0001778,2]
[388494635,1759213832681,-1977.12428649,0.00017784,2]
[388494637,1759213832692,-3897.96144968,0.00017785,2]
[388494639,1759213832701,-3897.96144968,0.0001779,2]
[388494641,1759213832711,-1977.12428649,0.0001779,2]
[388494643,1759213832721,-3897.96144968,0.00017795,2]
[388494645,1759213832730,-1977.12428649,0.00017796,2]
[388494647,1759213832739,-3897.96144968,0.000178,2]
[388494649,1759213832749,-1900.0,0.000178,6]
[388494651,1759213832758,-1977.12428649,0.00017801,2]
[388494653,1759213832768,-3897.96144968,0.00017804,2]
[388494655,1759213832778,-1977.12428649,0.00017807,2]
[388494657,1759213832788,-3897.96144968,0.00017809,2]
[388494659,1759213832798,-1977.12428649,0.00017813,2]
[388494661,1759213832808,-239.84119403,0.00017813,2]
[388494663,1759213832817,-264.15826762,0.00017814,2]
[388494665,1759213832828,-759.95226971,0.00017814,2]
[388494668,1759213832843,-3138.00917997,0.00017814,2]
[388494670,1759213832852,-1977.12428649,0.00017818,2]
[388494672,1759213832862,-3897.96144968,0.00017819,2]
[388494674,1759213832872,-167.57805999,0.00017823,3]
[388494676,1759213832882,-474.52590314,0.00017823,2]
[388494678,1759213832891,-32038.15338087,0.00017824,2]
[388494680,1759213832904,-15643.09031913,0.00017824,2]
[388494682,1759213832914,-520.538,0.00017824,2]
[388494684,1759213832924,-150.0,0.00017824,2]
[388494686,1759213832933,-3897.96144968,0.00017824,2]
[388494688,1759213832943,-1977.12428649,0.00017824,2]
[388494690,1759213832953,-1629.4181311,0.00017824,2]
[388494692,1759213832966,-3370.5818689,0.00017824,2]
[388494693,1759213832976,-150.0,0.00017863,2]
[388494694,1759213832985,-150.0,0.00017863,2]
[388494695,1759213832994,-208.273101,0.00017863,2]
[388494696,1759213833004,-150.0,0.00017863,2]
[388494697,1759213833014,-150.0,0.00017863,2]
[388494698,1759213833023,-150.0,0.00017863,2]
[388494699,1759213833034,-150.0,0.00017863,2]
[388494700,1759213833044,-150.0,0.00017863,2]
[388494701,1759213833055,-410.92515569,0.00017869,2]
[388494702,1759213833064,-194.62173234,0.00017869,2]
[388494703,1759213833074,-500.0,0.00017869,2]
[388494704,1759213833085,-500.0,0.00017869,2]
[388494705,1759213833581,-446.06589196,0.00017869,2]
[388494706,1759213833595,-2053.41469551,0.0001787,2]
[388494707,1759213833632,-1402.00000001,0.0001787,2]
[388494708,1759213837919,3000.0,0.00025,60]
[388494716,1759213840083,-16671.27508408,0.0001787,2]
[388494728,1759213840193,-800.53801,0.0001787,2]
[388494737,1759213840265,-5100.2116223,0.0001787,2]
[388494742,1759213840298,-302.17412442,0.0001787,2]
[388494744,1759213840310,-502.29884863,0.0001787,2]
[388494751,1759213840391,-421.83220003,0.0001787,2]
[388494779,1759213846231,-452.13570018,0.0001787,2]
[388494781,1759213854787,3000.0,0.00025,60]
[388494782,1759213862497,3000.0,0.00025,60]
[388494783,1759213875114,5000.0,0.000256,120]
[388494784,1759213881592,5000.0,0.000256,120]
[388494785,1759213915304,3000.0,0.000256,120]
[388494786,1759213930636,3493.0,0.000256,120]
[388494788,1759213997105,2000.0,0.00024948,120]
[388494866,1759214486386,192.0,0.00025466,120]
[388494867,1759214597187,2036.947638,0.00024948,120]
[388494880,1759214725470,150.0,0.00016077,2]
[388494881,1759214725611,150.0,0.00016077,2]
[388494882,1759214725651,150.0,0.00016332,2]
[388494883,1759214725703,150.0,0.00016587,2]
[388494909,1759214728578,150.0,0.00016077,2]
[388494910,1759214734253,150.0,0.00016077,2]
[388494911,1759214735732,150.0,0.00016077,2]
[388494914,1759214749407,173.44855044,0.00016077,2]
[388494915,1759214750812,150.0,0.00016077,2]
[388494916,1759214751083,150.0,0.00016077,2]
[388494917,1759214752229,-150.0,0.00016672,2]
[388494932,1759214958077,-152.99,0.00016774,2]
[388494933,1759214958099,-179.78,0.00016796,2]
[388494934,1759214958122,-150.0,0.00016842,2]
[388494935,1759214958144,-150.0,0.00016964,7]
[388494936,1759214958164,-275.49891685,0.00016967,2]
[388494937,1759214958187,-150.0,0.0001697,2]
[388494938,1759214958208,-150.0,0.0001697,2]
[388494939,1759214958232,-192.0,0.00016977,2]
[388494940,1759214958254,-150.0,0.00017097,2]
[388494941,1759214958275,-150.0,0.00017268,2]
[388494942,1759214958295,-150.78,0.000173,2]
[388494943,1759214958318,-300.0,0.000173,2]
[388494944,1759214958338,-175.4,0.000173,2]
[388494945,1759214958359,-167.62,0.000173,2]
[388494946,1759214958382,-150.0,0.00017353,2]
[388494947,1759214958403,-167.13,0.00017378,2]
[388494948,1759214958425,-170.97,0.00017471,2]
[388494949,1759214958450,-300.0,0.00017477,2]
[388494950,1759214958471,-1124.17,0.00017478,2]
[388494951,1759214958492,-150.0,0.00017478,2]
[388494952,1759214958513,-150.32,0.00017478,2]
[388494953,1759214958534,-153.34,0.00017478,2]
[388494954,1759214958554,-832.07,0.00017478,2]
[388494955,1759214958574,-1075.711187,0.00017601,2]
[388494956,1759214958595,-150.0,0.00017608,2]
[388494957,1759214958616,-1547.47424731,0.0001777,2]
[388494958,1759214958638,-1547.47424727,0.00017776,2]
[388494959,1759214958661,-1200.0,0.00017779,2]
[388494960,1759214958684,-474.52590314,0.00017779,2]
[388494961,1759214958705,-3312.74549843,0.0001778,2]
[388494962,1759214958910,-1687.25450157,0.0001778,2]
[388494963,1759214958934,-205.10645696,0.0001778,2]
[388494964,1759214958956,-164.61515915,0.0001778,2]
[388494965,1759214958979,-1149.5983974,0.0001778,2]
[388494966,1759214959002,-161.44474461,0.0001778,2]
[388494967,1759214959023,-2407.299612,0.0001778,2]
[388494968,1759214959046,-378.20478484,0.0001778,2]
[388494969,1759214959068,-1547.47424727,0.00017782,2]
[388494970,1759214959089,-1149.59839735,0.00017785,2]
[388494971,1759214959111,-1547.47424727,0.00017788,2]